bitfinex/quotes_SOLUSD_20240816
["timestamp","ask_amount","ask_price","bid_price","bid_amount"]
[1723817711024,0.8336353,140.24,140.17,0.37647]
[1723817711237,0.8336353,140.24,140.17,45.37647]
[1723817711410,0.8336353,140.24,140.17,45.0]
[1723817711749,0.8336353,140.24,140.18,6.93087]
[1723817711947,1.6670353,140.24,140.13,6.5544]
[1723817712240,9.1064043,140.24,140.13,6.5544]
[1723817712536,9.1064043,140.24,140.11,16.0248]
[1723817712730,9.1064043,140.24,140.11,17.45120384]
[1723817712909,0.12549,140.23,140.11,16.0248]
[1723817713106,20.0,140.23,140.11,36.0248]
[1723817713319,20.25098,140.23,140.11,16.0248]
[1723817713616,0.12549,140.21,140.11,16.0248]
[1723817713831,0.12549,140.21,140.11,17.44976858]
[1723817714030,20.0,140.22,140.12,0.12549]
[1723817714210,20.0,140.23,140.12,20.12549]
[1723817714609,11.14236883,140.24,140.13,0.25098]
[1723817714931,11.14236883,140.24,140.14,0.12549]
[1723817715307,0.12549,140.23,140.13,45.37647]
[1723817715622,0.12549,140.23,140.13,382.77647]
[1723817715825,0.12549,140.23,140.14,45.0]
[1723817716023,20.12549,140.23,140.14,45.0]
[1723817716428,20.0,140.23,140.14,45.0]
[1723817716624,11.14236883,140.24,140.15,0.25098]
[1723817716828,0.8336353,140.24,140.15,0.25098]
[1723817717034,0.8336353,140.24,140.16,0.12549]
[1723817717909,0.8336353,140.24,140.16,0.25098]
[1723817718115,0.8336353,140.24,140.18,6.2327]
[1723817718330,0.8336353,140.24,140.19,45.25098]
[1723817718840,0.8336353,140.24,140.2,16.1237]
[1723817719042,0.8336353,140.24,140.21,45.25098]
[1723817719450,0.8336353,140.24,140.22,0.25098]
[1723817719674,0.8336353,140.24,140.23,0.12549]
[1723817719942,0.8336353,140.24,140.23,0.25098]
[1723817720240,7.44195442,140.32,140.23,0.50196]
[1723817720439,7.439368,140.34,140.24,0.25098]
[1723817720640,7.439368,140.34,140.25,0.12549]
[1723817720840,7.439368,140.34,140.23,427.65098]
[1723817721144,7.439368,140.34,140.24,0.12549]
[1723817721331,7.439368,140.34,140.24,0.25098]
[1723817721533,7.439368,140.34,140.25,0.25098]
[1723817721841,7.439368,140.34,140.27,6.461]
[1723817722056,0.8334,140.41,140.27,6.461]
[1723817722057,0.8334,140.41,140.28,46.22099879]
[1723817722222,0.2712098,140.34,140.28,46.22099879]
[1723817722418,0.2712098,140.34,140.28,428.62099879]
[1723817722643,0.2712098,140.34,140.29,0.12549]
[1723817723022,0.2712098,140.34,140.29,15.79169]
[1723817723251,0.2712098,140.34,140.3,45.25098]
[1723817723465,0.2712098,140.34,140.3,45.0]
[1723817724135,0.2712098,140.34,140.31,0.25098]
[1723817724453,0.2712098,140.34,140.32,0.12549]
[1723817724746,0.2712098,140.34,140.32,0.25098]
[1723817724946,0.2712098,140.34,140.32,0.12549]
[1723817725250,0.2712098,140.34,140.3,45.0]
[1723817725464,0.2712098,140.34,140.31,0.12549]
[1723817725668,0.2712098,140.34,140.29,15.6662]
[1723817727244,0.2712098,140.34,140.3,45.0]
[1723817728049,0.2712098,140.34,140.31,0.55497083]
[1723817729032,0.2712098,140.34,140.3,45.25098]
[1723817729242,0.2712098,140.34,140.3,45.0]
[1723817729461,0.2712098,140.34,140.29,398.0662]
[1723817729836,0.2712098,140.34,140.25,16.3513]
[1723817730241,0.25098,140.33,140.25,16.3513]
[1723817730456,0.25098,140.33,140.23,6.2588]
[1723817730661,0.25098,140.33,140.21,382.4]
[1723817730825,67.03317355,140.33,140.19,6.4567]
[1723817731035,67.03317355,140.33,140.16,272.8299]
[1723817731438,67.03317355,140.33,140.08,6.4567]
[1723817731439,0.12549,140.27,140.08,6.4567]
[1723817731669,0.12549,140.23,140.08,6.4567]
[1723817731884,0.12549,140.21,140.03,6.0079]
[1723817732168,0.12549,140.19,140.03,6.0079]
[1723817732363,1.90999739,140.19,140.03,6.0079]
[1723817732685,1.90999739,140.19,140.0,15.3246]
[1723817732686,0.12549,140.16,140.0,15.3246]
[1723817732883,67.03572221,140.16,139.96,6.0164]
[1723817733181,0.12549,140.14,139.96,6.0164]
[1723817733464,67.03610515,140.14,139.96,6.0164]
[1723817733665,0.12549,140.11,139.96,6.0164]
[1723817733968,67.0363171,140.11,139.96,6.0164]
[1723817734179,65.25098,140.11,139.96,6.0164]
[1723817734457,0.12549,140.09,139.96,6.0164]
[1723817734770,0.12549,140.07,139.94,16.5746]
[1723817734945,65.25098,140.07,139.94,16.5746]
[1723817735133,67.03656577,140.07,139.94,16.5746]
[1723817735332,67.03656577,140.07,139.92,0.6296141]
[1723817735869,0.12549,140.01,139.92,0.6296141]
[1723817736073,47.03720966,140.01,139.92,0.6296141]
[1723817736360,0.12549,139.99,139.92,0.6296141]
[1723817736569,0.25098,139.99,139.92,0.6296141]
[1723817736751,0.12549,139.99,139.92,0.6296141]
[1723817736950,30.0,139.98,139.92,0.6296141]
[1723817737351,20.0,139.97,139.92,0.6296141]
[1723817737857,30.0,139.94,139.92,0.6296141]
[1723817738049,20.0,139.93,139.92,0.6296141]
[1723817738873,50.0,139.93,139.92,0.6296141]
[1723817739950,50.12549,139.93,139.92,0.6296141]
[1723817740577,50.25098,139.93,139.92,1e-08]
[1723817740867,95.25098,139.93,139.92,1e-08]
[1723817741072,50.25098,139.93,139.92,1e-08]
[1723817741579,50.12549,139.93,139.92,1e-08]
[1723817741762,30.0,139.93,139.92,1e-08]
[1723817742369,30.25098,139.93,139.92,1e-08]
[1723817742573,30.0,139.93,139.92,1e-08]
[1723817744762,30.25098,139.93,139.92,1e-08]
[1723817745170,95.25098,139.93,139.92,1e-08]
[1723817745352,102.69794421,139.93,139.92,1e-08]
[1723817747771,57.69794421,139.93,139.92,1e-08]
[1723817749053,0.12549,139.92,139.8,397.7312]
[1723817749254,0.12549,139.89,139.8,15.3312]
[1723817749454,22.03845471,139.89,139.78,6.5139]
[1723817750173,0.12549,139.86,139.78,6.5139]
[1723817750362,20.12549,139.86,139.78,6.5139]
[1723817750884,20.0,139.86,139.78,6.5139]
[1723817751380,2.79493942,139.89,139.78,6.5139]
[1723817751701,30.0,139.85,139.77,0.9008239]
[1723817751852,0.12549,139.83,139.77,0.9008239]
[1723817752155,0.25098,139.83,139.77,0.9008239]
[1723817753581,30.0,139.85,139.77,0.9008239]
[1723817753795,30.0,139.83,139.77,0.9008239]
[1723817754094,0.12549,139.85,139.77,0.9008239]
[1723817754579,10.31794722,139.93,139.77,0.9008239]
[1723817754785,0.12549,139.92,139.77,0.9008239]
[1723817755285,0.25098,139.92,139.77,0.9008239]
[1723817755579,7.43294739,139.91,139.78,0.12549]
[1723817755753,20.0,139.9,139.78,45.37647]
[1723817755959,7.43294739,139.91,139.78,45.37647]
[1723817756286,7.43294739,139.91,139.79,0.12549]
[1723817756582,7.43294739,139.91,139.79,0.37647]
[1723817756583,10.29926234,139.91,139.79,0.37647]
[1723817756774,10.29926234,139.91,139.8,0.12549]
[1723817756993,10.29926234,139.91,139.8,0.37647]
[1723817757354,10.29926234,139.91,139.81,0.12549]
[1723817757553,10.29926234,139.91,139.82,6.1333]
[1723817757778,10.29926234,139.91,139.83,45.12549]
[1723817758196,7.43294739,139.91,139.84,16.76099]
[1723817758366,0.8334,140.0,139.85,45.12549]
[1723817758561,7.43156353,139.95,139.85,45.12549]
[1723817758869,28.641097,140.03,139.86,0.12549]
[1723817759179,7.42602382,139.97,139.86,0.37647]
[1723817759391,0.8334,140.05,139.88,0.12549]
[1723817759596,0.8334,140.05,139.89,0.59357677]
[1723817759763,7.42493482,140.01,139.9,0.25098]
[1723817759957,28.640297,140.04,139.88,45.37647]
[1723817760158,7.42539465,140.0,139.88,0.12549]
[1723817760379,1.7861129,139.99,139.89,45.0]
[1723817760687,0.12549,139.98,139.87,45.0]
[1723817760860,1.91182663,139.98,139.87,45.0]
[1723817761063,1.91182663,139.98,139.86,382.4]
[1723817761064,0.12549,139.97,139.86,382.4]
[1723817761280,47.03752163,139.98,139.84,16.6355]
[1723817761583,0.12549,139.96,139.84,16.6355]
[1723817761783,0.25098,139.96,139.84,16.6355]
[1723817762180,20.0,139.97,139.85,20.0]
[1723817762371,22.90680337,139.98,139.85,20.0]
[1723817762669,22.90680337,139.98,139.84,16.76099]
[1723817763000,22.90680337,139.98,139.85,45.0]
[1723817763311,22.90680337,139.98,139.84,16.6355]
[1723817763585,0.12549,139.96,139.84,16.6355]
[1723817763886,30.0,139.9,139.84,16.6355]
[1723817764083,20.25098,139.89,139.82,6.1333]
[1723817764479,20.0,139.89,139.82,6.1333]
[1723817764709,30.0,139.9,139.82,6.1333]
[1723817764994,0.12549,139.96,139.83,1.42944811]
[1723817765191,0.12549,139.96,139.82,388.5333]
[1723817765691,1.91229276,139.96,139.82,388.5333]
[1723817765860,45.0,139.97,139.83,45.0]
[1723817766064,20.0,139.96,139.84,0.12549]
[1723817766280,20.0,139.98,139.84,0.12549]
[1723817766588,7.42643526,139.99,139.84,20.12549]
[1723817766589,10.27169846,139.99,139.84,20.12549]
[1723817766792,10.27169846,139.99,139.87,0.12549]
[1723817766971,7.42643526,139.99,139.89,0.12549]
[1723817767282,7.42643526,139.99,139.92,15.3216]
[1723817767476,2.84866595,140.03,139.93,45.12549]
[1723817767664,0.8334,140.1,139.95,6.0133]
[1723817767867,0.8334,140.1,139.96,45.25098]
[1723817767868,7.42240044,140.04,139.96,45.25098]
[1723817768069,28.626357,140.1,139.99,7.1432]
[1723817768292,7.41976957,140.11,140.0,45.25098]
[1723817768482,7.41976957,140.11,140.0,45.0]
[1723817768666,7.41976957,140.11,139.99,45.0]
[1723817768869,7.41976957,140.11,140.0,0.25098]
[1723817769324,20.0,140.1,140.0,0.12549]
[1723817769615,21.7846057,140.1,139.99,45.0]
[1723817770180,20.0,140.1,139.99,45.0]
[1723817770587,7.41976957,140.11,140.0,0.12549]
[1723817770771,2.78036974,140.14,140.0,0.50196]
[1723817770980,0.8334,140.18,140.02,0.12549]
[1723817770981,7.42840805,140.1,140.02,0.12549]
[1723817771188,28.614859,140.16,140.02,45.25098]
[1723817771378,5.4352009,140.18,140.02,45.0]
[1723817771571,7.43216998,140.13,140.02,45.0]
[1723817771766,32.26545858,140.18,140.02,45.0]
[1723817771989,7.43091722,140.12,140.02,45.0]
[1723817772307,29.448259,140.18,140.03,0.37647]
[1723817772512,7.4300387,140.13,140.03,0.37647]
[1723817772698,7.4300387,140.13,140.03,0.12549]
[1723817772904,1.78425881,140.17,140.02,45.0]
[1723817773194,7.43126115,140.12,140.02,45.0]
[1723817773391,29.448259,140.18,140.03,0.12549]
[1723817773609,7.43064923,140.16,140.02,45.0]
[1723817773781,45.0,140.15,140.02,45.0]
[1723817773977,20.12549,140.14,140.02,45.0]
[1723817774501,20.0,140.14,140.03,0.12549]
[1723817774797,7.43064923,140.16,140.05,0.12549]
[1723817774987,7.43064923,140.16,140.05,0.50196]
[1723817775171,7.43064923,140.16,140.05,66.09945487]
[1723817775376,23.19448118,140.18,140.05,46.09945487]
[1723817775590,10.25378246,140.18,140.05,46.09945487]
[1723817775977,10.25378246,140.18,140.05,66.09945487]
[1723817776180,10.25378246,140.18,140.07,0.12549]
[1723817776489,10.25378246,140.18,140.07,53.23846955]
[1723817776691,0.8334,140.26,140.07,66.09936955]
[1723817776895,7.44163272,140.2,140.1,0.12549]
[1723817777193,0.8334,140.26,140.1,46.09924162]
[1723817777500,7.441633,140.2,140.1,45.50196]
[1723817777996,14.88140949,140.2,140.1,45.50196]
[1723817778198,7.43977649,140.2,140.12,6.1204]
[1723817778379,2.84883824,140.29,140.13,45.37647]
[1723817778579,7.43150068,140.22,140.13,45.37647]
[1723817778774,7.43150068,140.22,140.15,15.5705]
[1723817778975,1.7342239,140.3,140.15,15.5705]
[1723817778976,3.73663351,140.3,140.16,45.25098]
[1723817779195,7.43920756,140.25,140.16,45.0]
[1723817779396,0.9008239,140.3,140.16,45.0]
[1723817779580,7.43367652,140.29,140.16,45.0]
[1723817779989,7.43367652,140.29,140.17,1.42571456]
[1723817780203,7.43367652,140.29,140.18,1.42601217]
[1723817780401,7.43367652,140.29,140.19,6.2565]
[1723817780701,7.43367652,140.29,140.2,45.0]
[1723817780910,7.433676,140.28,140.2,45.0]
[1723817781682,1.78229908,140.27,140.19,6.2565]
[1723817782002,1.78274382,140.27,140.19,6.2565]
[1723817782183,0.25098,140.26,140.19,6.2565]
[1723817782384,0.25098,140.27,140.19,6.2565]
[1723817782599,22.03356878,140.27,140.19,6.2565]
[1723817782820,22.24976138,140.27,140.19,6.2565]
[1723817783099,0.12549,140.25,140.15,21.8999]
[1723817783695,0.12549,140.26,140.15,21.8999]
[1723817784283,1.90811478,140.26,140.15,21.8999]
[1723817784515,0.12549,140.26,140.16,45.0]
[1723817784683,20.2161926,140.27,140.17,0.25098]
[1723817785006,0.2161926,140.27,140.18,0.12549]
[1723817785204,0.2161926,140.27,140.18,1.55073918]
[1723817785387,0.2161926,140.27,140.2,22.08909]
[1723817785579,0.2161926,140.27,140.22,0.12549]
[1723817785780,11.159099,140.31,140.24,0.12549]
[1723817785997,0.828758,140.31,140.24,1.54997045]
[1723817786180,0.828758,140.31,140.25,0.37647]
[1723817786386,0.828758,140.31,140.27,22.2587]
[1723817786586,0.828758,140.31,140.28,45.0]
[1723817786907,0.828758,140.31,140.28,46.42441743]
[1723817787232,0.828758,140.31,140.28,45.0]
[1723817787388,0.8334,140.44,140.28,45.0]
[1723817787389,0.8334,140.44,140.29,0.37647]
[1723817787590,1.78090302,140.43,140.29,0.25098]
[1723817787777,7.435389,140.37,140.28,45.0]
[1723817788686,20.0,140.36,140.28,45.0]
[1723817789287,7.435389,140.37,140.28,45.0]
[1723817789888,7.435389,140.37,140.29,0.50196]
[1723817790088,7.435389,140.37,140.29,0.25098]
[1723817790284,7.435389,140.37,140.28,45.0]
[1723817790596,1.78109433,140.36,140.27,22.2587]
[1723817790789,10.25026656,140.37,140.27,22.2587]
[1723817790980,0.12549,140.35,140.27,22.2587]
[1723817791404,20.0,140.36,140.27,22.2587]
[1723817791999,20.0,140.36,140.28,45.25098]
[1723817792384,10.25026656,140.37,140.29,0.12549]
[1723817792580,10.25026656,140.37,140.29,382.65098]
[1723817792581,7.435389,140.37,140.29,382.65098]
[1723817792782,0.8334,140.48,140.3,45.25098]
[1723817793000,3.66128851,140.45,140.31,0.12549]
[1723817793204,7.43525418,140.39,140.31,0.12549]
[1723817793405,3.66128851,140.45,140.31,0.12549]
[1723817793681,7.43836741,140.39,140.3,45.12549]
[1723817793890,1.78098577,140.44,140.27,404.6587]
[1723817794096,7.43964733,140.38,140.28,0.25098]
[1723817794299,23.66128851,140.45,140.28,0.25098]
[1723817794495,1.7808834,140.44,140.28,382.65098]
[1723817794696,7.43887968,140.37,140.28,382.4]
[1723817795023,0.12549,140.42,140.27,22.2587]
[1723817795221,0.12549,140.35,140.27,22.2587]
[1723817795525,20.25098,140.35,140.27,22.2587]
[1723817795723,0.12549,140.33,140.21,404.6167]
[1723817795889,0.12549,140.33,140.21,22.2167]
[1723817795890,22.03318256,140.33,140.21,22.2167]
[1723817796089,0.12549,140.3,140.21,22.2167]
[1723817796297,20.25098,140.3,140.21,22.2167]
[1723817797201,0.12549,140.28,140.21,22.2167]
[1723817797511,20.12549,140.28,140.21,22.2167]
[1723817797710,20.12549,140.28,140.22,1.42251298]
[1723817797711,20.0,140.28,140.22,1.42251298]
[1723817797925,7.44697981,140.34,140.22,1.42251298]
[1723817797926,7.44697981,140.34,140.23,0.12549]
[1723817798107,7.44697981,140.34,140.23,45.37647]
[1723817798301,7.44697981,140.34,140.22,45.0]
[1723817798998,1.78206773,140.33,140.21,22.2167]
[1723817799201,0.12549,140.31,140.21,22.2167]
[1723817799807,20.12549,140.31,140.16,640.2]
[1723817800113,0.12549,140.26,140.17,6.1285]
[1723817800325,20.12549,140.26,140.17,6.1285]
[1723817800506,0.12549,140.25,140.17,6.1285]
[1723817800690,0.12549,140.26,140.17,6.1285]
[1723817801447,2.81446201,140.26,140.17,6.1285]
[1723817801729,20.0,140.31,140.17,6.1285]
[1723817801730,21.7821981,140.39,140.17,6.1285]
[1723817801892,1.78216715,140.33,140.17,388.5285]
[1723817802228,10.31040129,140.34,140.17,408.5285]
[1723817802415,10.31040129,140.34,140.18,45.50196]
[1723817802587,1.78192269,140.33,140.18,45.50196]
[1723817802992,10.31040129,140.34,140.19,40.0]
[1723817803218,10.31040129,140.34,140.22,6.54479]
[1723817803401,20.0,140.46,140.24,0.12549]
[1723817803710,7.44335601,140.35,140.24,382.4]
[1723817803911,1.78186941,140.4,140.23,45.0]
[1723817804213,7.44586177,140.34,140.22,6.4193]
[1723817804512,1.78186755,140.39,140.22,6.4193]
[1723817804727,7.44436829,140.33,140.23,0.37647]
[1723817804914,0.8334,140.43,140.23,0.37647]
[1723817804915,0.8334,140.43,140.24,0.12549]
[1723817805151,1.78128143,140.42,140.24,402.52549]
[1723817805429,1.78140795,140.42,140.25,0.25098]
[1723817805593,0.8334,140.43,140.25,45.25098]
[1723817805791,7.44346067,140.41,140.26,0.25098]
[1723817806006,7.44346067,140.41,140.29,6.3749]
[1723817806212,7.44346067,140.41,140.3,45.0]
[1723817808211,20.0,140.4,140.3,45.0]
[1723817808429,7.44346067,140.41,140.31,0.12549]
[1723817808820,7.44346067,140.41,140.3,427.4]
[1723817809019,10.29836514,140.41,140.31,1.67266479]
[1723817809214,10.29836514,140.41,140.31,0.25098]
[1723817809534,10.29836514,140.41,140.3,382.4]
[1723817809712,20.0,140.4,140.3,382.4]
[1723817810033,1.90660772,140.39,140.29,6.3749]
[1723817810334,0.12549,140.38,140.29,6.3749]
[1723817810625,0.12549,140.39,140.29,6.3749]
[1723817810626,0.25098,140.39,140.29,6.3749]
[1723817810829,47.03226226,140.39,140.29,6.3749]
[1723817811030,0.12549,140.37,140.28,16.1371]
[1723817811209,45.25098,140.37,140.28,16.1371]
[1723817811409,0.12549,140.35,140.28,16.1371]
[1723817811605,0.25098,140.35,140.28,16.1371]
[1723817812121,0.25098,140.35,140.24,388.5294]
[1723817812122,2.03263777,140.35,140.24,388.5294]
[1723817812338,0.12549,140.3,140.24,388.5294]
[1723817812632,20.12549,140.3,140.24,388.5294]
[1723817812808,20.12549,140.3,140.24,6.1294]
[1723817813009,0.12549,140.29,140.24,6.1294]
[1723817813422,20.0,140.3,140.24,6.1294]
[1723817814537,20.0,140.3,140.25,45.0]
[1723817814917,0.12549,140.35,140.25,45.0]
[1723817815231,0.25098,140.35,140.25,45.0]
[1723817815533,20.0,140.36,140.25,45.0]
[1723817815747,20.0,140.4,140.26,0.25098]
[1723817815925,0.8334,140.41,140.26,0.25098]
[1723817816113,7.43725948,140.35,140.26,382.65098]
[1723817816423,3.730609,140.41,140.27,45.0]
[1723817816622,7.43662602,140.36,140.26,0.25098]
[1723817816831,0.8334,140.41,140.26,0.25098]
[1723817817011,7.43931729,140.36,140.26,0.25098]
[1723817817217,7.43931729,140.36,140.26,0.12549]
[1723817817218,20.12549,140.35,140.26,0.12549]
[1723817817435,20.12549,140.35,140.25,45.0]
[1723817817637,0.12549,140.33,140.24,6.1294]
[1723817818220,20.12549,140.33,140.24,6.1294]
[1723817818738,0.12549,140.31,140.19,280.041]
[1723817818932,20.12549,140.31,140.19,22.241]
[1723817819131,0.12549,140.3,140.19,22.241]
[1723817819545,0.12549,140.28,140.19,22.241]
[1723817819713,65.25098,140.28,140.19,22.241]
[1723817819912,20.25098,140.28,140.19,22.241]
[1723817820137,22.03360108,140.28,140.19,22.241]
[1723817820351,0.12549,140.26,140.13,22.7954]
[1723817820816,0.12549,140.26,140.07,20.0]
[1723817820817,64.62789605,140.26,140.08,6.2333]
[1723817821026,0.12549,140.24,140.08,6.2333]
[1723817821231,62.84687665,140.24,140.08,6.2333]
[1723817821431,0.12549,140.22,140.08,6.2333]
[1723817821628,20.25098,140.22,140.08,6.2333]
[1723817821846,0.12549,140.2,140.08,6.2333]
[1723817822023,64.63970916,140.2,140.08,6.2333]
[1723817822228,0.12549,140.18,140.07,16.4704]
[1723817822742,21.90957642,140.18,140.07,16.4704]
[1723817822931,0.12549,140.16,140.07,16.4704]
[1723817823249,62.75168916,140.16,140.03,6.3633]
[1723817823640,0.12549,140.15,140.03,6.3633]
[1723817823835,30.12549,140.15,140.03,6.3633]
[1723817824149,66.90997929,140.14,140.03,6.3633]
[1723817824358,0.12549,140.13,140.03,6.3633]
[1723817824573,1.91016952,140.12,140.03,6.3633]
[1723817824727,0.12549,140.11,140.01,15.0828]
[1723817824921,1.91023419,140.12,140.01,15.0828]
[1723817825126,1.91028529,140.11,140.01,15.0828]
[1723817825344,1.91028529,140.11,139.98,6.2095]
[1723817825345,1.91033223,140.1,139.98,6.2095]
[1723817825543,0.12549,140.09,139.98,6.2095]
[1723817825756,0.12549,140.1,139.98,26.2095]
[1723817826061,20.0,140.14,140.0,20.0]
[1723817826361,20.0,140.14,139.98,388.6095]
[1723817826362,2.83658224,140.15,139.98,408.6095]
[1723817826570,1.78448029,140.19,139.99,1.38514289]
[1723817826853,30.0,140.11,140.0,0.12549]
[1723817827026,20.0,140.1,140.0,0.50196]
[1723817827742,0.12549,140.11,140.0,0.50196]
[1723817827945,7.42781904,140.1,140.0,0.50196]
[1723817828248,20.0,140.09,140.0,0.50196]
[1723817828829,0.12549,140.1,140.0,0.50196]
[1723817829136,20.12549,140.1,140.0,0.50196]
[1723817829443,0.12549,140.09,140.0,0.25098]
[1723817829755,0.12549,140.09,140.0,0.12549]
[1723817830254,0.12549,140.09,139.99,45.0]
[1723817830428,0.12549,140.09,140.0,0.12549]
[1723817830633,20.0,140.1,140.0,20.25098]
[1723817830827,7.43015435,140.11,140.01,45.25098]
[1723817831149,20.0,140.16,140.02,0.12549]
[1723817831458,7.42952495,140.13,140.02,0.25098]
[1723817831754,22.79101926,140.16,140.02,0.25098]
[1723817831952,7.43692806,140.13,140.02,382.65098]
[1723817832151,22.79101926,140.16,140.03,45.0]
[1723817832452,0.12549,140.11,140.02,382.4]
[1723817832641,20.12549,140.11,140.02,382.4]
[1723817832837,7.57017416,140.11,140.02,382.4]
[1723817833036,0.12549,140.09,140.02,382.4]
[1723817833441,0.25098,140.09,140.02,382.4]
[1723817834940,20.0,140.1,140.03,45.0]
[1723817835526,7.42850845,140.11,140.03,45.0]
[1723817835838,20.0,140.1,140.03,45.0]
[1723817836041,20.0,140.1,140.02,382.4]
[1723817836451,0.12549,140.09,140.02,382.4]
[1723817836655,2.03578561,140.09,140.02,382.4]
[1723817836956,20.0,140.1,140.03,16.641]
[1723817837535,7.42781149,140.12,140.03,16.641]
[1723817837757,7.42781149,140.12,140.05,6.011]
[1723817837958,2.78875744,140.16,140.05,6.011]
[1723817838254,7.42750575,140.14,140.05,6.011]
[1723817838861,0.12549,140.13,140.05,6.011]
[1723817839152,20.25098,140.13,140.05,6.011]
[1723817839357,20.0,140.12,140.05,6.011]
[1723817839542,20.0,140.12,140.06,45.0]
[1723817840061,20.12549,140.13,140.06,45.0]
[1723817840429,20.0,140.13,140.06,45.0]
[1723817840636,20.0,140.13,140.07,0.25098]
[1723817840956,20.0,140.13,140.07,0.12549]
[1723817841146,22.80863,140.17,140.05,6.011]
[1723817841347,20.0,140.17,140.05,6.011]
[1723817841737,21.7843082,140.17,140.05,6.011]
[1723817841936,0.12549,140.16,140.05,6.011]
[1723817842235,45.25098,140.16,140.05,6.011]
[1723817842543,0.12549,140.14,140.05,6.011]
[1723817842745,0.12549,140.14,140.03,399.041]
[1723817842746,45.25098,140.14,140.03,399.041]
[1723817842943,21.78491654,140.13,140.03,399.041]
[1723817843140,45.25098,140.12,140.03,399.041]
[1723817843346,0.12549,140.1,140.03,399.041]
[1723817843558,2.03584663,140.1,140.03,399.041]
[1723817843759,2.03584663,140.1,140.03,16.641]
[1723817843938,0.12549,140.08,140.01,6.412]
[1723817844273,0.25098,140.08,140.01,6.412]
[1723817844967,32.03622982,140.08,139.98,15.159]
[1723817845138,0.12549,140.06,139.98,15.159]
[1723817845337,0.25098,140.06,139.98,15.159]
[1723817846037,30.25098,140.06,139.98,15.159]
[1723817846238,0.12549,140.04,139.98,15.159]
[1723817846548,0.25098,140.04,139.98,15.159]
[1723817847662,20.0,140.05,139.98,15.159]
[1723817847860,0.12549,140.07,139.99,45.0]
[1723817848376,0.8334,140.17,139.99,45.0]
[1723817848951,2.61805517,140.17,139.99,45.0]
[1723817849155,0.8334,140.17,139.99,45.0]
[1723817849661,20.8334,140.17,139.99,46.38944912]
[1723817849963,2.77453989,140.17,140.02,6.6622]
[1723817850168,29.441072,140.21,140.04,16.1504]
[1723817850464,29.441072,140.21,140.05,45.0]
[1723817850965,10.24833414,140.18,140.05,45.0]
[1723817851871,10.24833414,140.18,140.05,65.0]
[1723817852071,10.24833414,140.18,140.06,14.30386]
[1723817852241,28.600142,140.24,140.08,15.69599]
[1723817852570,7.42519299,140.23,140.11,6.314]
[1723817852776,7.42519299,140.23,140.12,45.0]
[1723817853792,20.0,140.22,140.11,6.314]
[1723817853950,7.42519299,140.23,140.11,6.314]
[1723817854372,0.12549,140.22,140.11,6.314]
[1723817854551,0.12549,140.22,140.12,45.0]
[1723817854755,0.25098,140.22,140.12,46.28941507]
[1723817855046,7.42519299,140.23,140.14,15.4985]
[1723817855250,0.8334,140.3,140.15,45.0]
[1723817855448,7.43206799,140.25,140.15,45.0]
[1723817855648,28.58794,140.31,140.15,45.0]
[1723817855864,28.58794,140.31,140.16,6.3841]
[1723817856064,7.43150003,140.27,140.18,0.12549]
[1723817856376,20.0,140.41,140.18,0.12549]
[1723817856377,28.577286,140.35,140.18,8.27297675]
[1723817856556,7.43173603,140.31,140.19,61.23948]
[1723817856756,28.577286,140.35,140.2,1.01446489]
[1723817856956,7.43244296,140.31,140.21,1.01439253]
[1723817857280,0.8334,140.39,140.19,61.23948]
[1723817857281,22.77950828,140.37,140.19,443.51399]
[1723817857470,7.43487701,140.3,140.19,60.9885]
[1723817857855,28.577286,140.34,140.19,60.9885]